bitfinex/quotes_SOLUSD_20250317
["timestamp","ask_amount","ask_price","bid_price","bid_amount"]
[1742174188665,18.47650692,127.67,127.63,10.64360692]
[1742174188866,18.64964886,127.66,127.63,10.64360692]
[1742174189672,26.48304886,127.66,127.63,10.64360692]
[1742174190349,26.48304886,127.66,127.62,10.64360692]
[1742174191060,20.063,127.68,127.65,10.64360692]
[1742174191250,26.48264886,127.67,127.63,10.64360692]
[1742174192769,10.64360692,127.66,127.62,61.37508206]
[1742174192963,10.64360692,127.66,127.61,10.67360692]
[1742174193869,10.64360692,127.66,127.61,18.50970692]
[1742174194580,10.64360692,127.66,127.61,10.67360692]
[1742174194974,7.8339,127.65,127.61,10.67360692]
[1742174196081,7.8335,127.66,127.63,10.64360692]
[1742174196268,7.8335,127.66,127.62,10.64360692]
[1742174197055,7.8335,127.66,127.61,10.67360692]
[1742174197361,10.64360692,127.65,127.61,10.67360692]
[1742174197560,10.64360692,127.65,127.61,0.03]
[1742174198354,26.48414886,127.64,127.61,0.03]
[1742174198983,37.12775578,127.64,127.61,0.03]
[1742174202355,7.8342,127.65,127.61,10.67360692]
[1742174203055,18.47780692,127.65,127.61,10.67360692]
[1742174203680,18.47780692,127.65,127.61,0.03]
[1742174204155,10.64360692,127.64,127.61,0.03]
[1742174205685,18.47850692,127.64,127.61,0.03]
[1742174207598,10.64360692,127.63,127.61,0.03]
[1742174207781,7.8357,127.62,127.61,0.03]
[1742174207982,6.3357,127.62,127.61,0.03]
[1742174209500,18.47900692,127.63,127.61,0.03]
[1742174209799,18.47810692,127.64,127.61,0.03]
[1742174209983,7.8345,127.64,127.61,0.03]
[1742174210482,7.8975,127.64,127.61,0.03]
[1742174210683,18.54110692,127.64,127.61,0.03]
[1742174211288,10.64360692,127.63,127.61,0.03]
[1742174211697,18.54110692,127.64,127.61,0.03]
[1742174212922,10.64360692,127.63,127.61,0.03]
[1742174213293,18.54110692,127.64,127.61,0.03]
[1742174216206,18.47930692,127.63,127.61,0.03]
[1742174219008,7.8977,127.64,127.61,0.03]
[1742174222012,18.54130692,127.64,127.61,0.03]
[1742174222605,7.8977,127.64,127.61,0.03]
[1742174223390,18.54130692,127.64,127.61,0.03]
[1742174223594,7.8977,127.64,127.61,0.03]
[1742174224106,0.063,127.64,127.61,0.03]
[1742174224900,10.70660692,127.64,127.61,0.03]
[1742174225082,18.54130692,127.64,127.61,0.03]
[1742174225700,7.8977,127.64,127.61,0.03]
[1742174227813,18.54130692,127.64,127.61,0.03]
[1742174228014,10.64360692,127.63,127.61,0.03]
[1742174229221,7.8357,127.62,127.61,0.03]
[1742174229402,18.47930692,127.62,127.61,0.03]
[1742174229594,0.063,127.64,127.61,0.03]
[1742174229800,7.8976,127.64,127.61,0.03]
[1742174230319,18.54120692,127.64,127.61,0.03]
[1742174231421,7.8357,127.62,127.61,0.03]
[1742174231618,18.47900692,127.63,127.61,0.03]
[1742174232094,7.8354,127.63,127.61,0.03]
[1742174232910,18.54130692,127.64,127.61,0.03]
[1742174233115,7.8977,127.64,127.61,0.03]
[1742174233612,0.063,127.64,127.61,0.03]
[1742174233811,0.063,127.64,127.61,10.67360692]
[1742174235099,0.063,127.64,127.62,10.64360692]
[1742174235604,0.063,127.64,127.61,10.67360692]
[1742174235801,0.063,127.64,127.62,7.8357]
[1742174236117,0.063,127.64,127.63,10.64360692]
[1742174236990,0.063,127.64,127.62,18.47930692]
[1742174237899,0.063,127.64,127.61,79.88468898]
[1742174238104,0.063,127.64,127.62,10.64360692]
[1742174239517,0.063,127.64,127.62,18.47910692]
[1742174240898,0.063,127.64,127.63,10.64360692]
[1742174241199,0.063,127.64,127.63,72.01868898]
[1742174242319,0.063,127.64,127.63,79.85378898]
[1742174243113,0.063,127.64,127.61,0.03]
[1742174243605,29.35625578,127.64,127.61,0.03]
[1742174243915,10.70660692,127.64,127.61,0.03]
[1742174244522,29.35625578,127.64,127.61,0.03]
[1742174245725,18.71264886,127.64,127.61,0.03]
[1742174247522,0.063,127.64,127.61,0.03]
[1742174249328,7.8976,127.64,127.61,0.03]
[1742174250529,0.063,127.64,127.61,0.03]
[1742174255164,0.063,127.64,127.61,10.67360692]
[1742174255561,0.063,127.64,127.61,0.03]
[1742174255724,0.063,127.64,127.61,18.50990692]
[1742174258541,0.063,127.64,127.61,10.67360692]
[1742174259457,0.063,127.64,127.61,18.50990692]
[1742174260262,0.063,127.64,127.61,10.67360692]
[1742174260557,0.063,127.64,127.61,18.50990692]
[1742174261257,0.063,127.64,127.61,0.03]
[1742174266957,18.71264886,127.64,127.61,0.03]
[1742174268864,18.71264886,127.64,127.61,0.03]
[1742174270366,0.063,127.64,127.61,10.67360692]
[1742174270548,0.063,127.64,127.62,10.64360692]
[1742174272166,0.063,127.64,127.63,10.64360692]
[1742174272339,0.063,127.64,127.63,18.47870692]
[1742174272545,0.063,127.64,127.63,79.85378898]
[1742174272864,0.063,127.64,127.63,80.13811212]
[1742174274563,0.063,127.64,127.63,79.85378898]
[1742174281072,0.063,127.64,127.63,391.85378898]
[1742174281273,0.063,127.64,127.63,79.85378898]
[1742174281478,0.063,127.64,127.63,80.13811212]
[1742174284189,0.063,127.64,127.63,392.13811212]
[1742174284567,0.063,127.68,127.64,0.28432314]
[1742174284765,0.063,127.68,127.67,10.64360692]
[1742174286167,0.063,127.68,127.67,18.47620692]
[1742174288194,0.063,127.68,127.67,80.13561212]
[1742174289387,1.636,127.74,127.67,80.13561212]
[1742174289586,1.636,127.74,127.7,10.64360692]
[1742174290480,1.636,127.74,127.71,7.8302]
[1742174291289,1.636,127.74,127.71,18.47380692]
[1742174291776,18.64964886,127.75,127.71,18.47380692]
[1742174292291,18.53400692,127.76,127.71,18.47380692]
[1742174293177,7.8904,127.76,127.71,18.47380692]
[1742174293382,0.063,127.76,127.72,10.64360692]
[1742174293582,10.70660692,127.76,127.71,18.47380692]
[1742174294696,18.53370692,127.76,127.71,18.47380692]
[1742174295190,10.70660692,127.76,127.71,18.47380692]
[1742174296087,0.063,127.76,127.73,10.64360692]
[1742174296472,0.063,127.76,127.74,10.64360692]
[1742174296796,0.063,127.76,127.74,18.47190692]
[1742174297296,0.063,127.76,127.74,7.8283]
[1742174297485,0.063,127.76,127.73,18.47220692]
[1742174297687,0.063,127.76,127.73,7.8286]
[1742174297890,0.063,127.76,127.74,10.64360692]
[1742174298202,0.063,127.76,127.73,10.64360692]
[1742174298498,0.063,127.76,127.73,18.47250692]
[1742174300998,0.063,127.76,127.74,10.64360692]
[1742174301795,0.063,127.76,127.75,10.64360692]
[1742174303890,0.063,127.76,127.75,18.47130692]
[1742174308437,10.70660692,127.76,127.7,61.37508206]
[1742174308630,18.47130692,127.75,127.7,72.01868898]
[1742174309337,10.64360692,127.74,127.7,61.37508206]
[1742174310835,18.47200692,127.74,127.7,61.37508206]
[1742174312116,10.64360692,127.73,127.7,61.37508206]
[1742174313120,7.8296,127.72,127.7,61.37508206]
[1742174320760,7.3296,127.72,127.7,61.37508206]
[1742174320966,10.64360692,127.71,127.7,61.37508206]
[1742174322053,18.47380692,127.71,127.7,61.37508206]
[1742174322253,37.12345578,127.71,127.68,0.03]
[1742174322456,10.64360692,127.7,127.68,0.03]
[1742174322640,37.12345578,127.71,127.68,0.03]
[1742174324038,18.47350692,127.72,127.68,0.03]
[1742174324237,7.8299,127.72,127.68,10.67360692]
[1742174324638,18.47350692,127.72,127.68,0.03]
[1742174325054,38.70995578,127.73,127.68,10.67360692]
[1742174325248,26.47894886,127.73,127.69,10.64360692]
[1742174325954,37.12255578,127.73,127.69,10.64360692]
[1742174327662,37.12255578,127.73,127.69,18.47500692]
[1742174328163,37.12255578,127.73,127.69,10.64360692]
[1742174328340,10.70660692,127.74,127.69,18.47450692]
[1742174328663,0.063,127.74,127.71,10.64360692]
[1742174329243,0.063,127.74,127.72,10.64360692]
[1742174329437,0.063,127.74,127.73,10.64360692]
[1742174329643,0.063,127.74,127.73,18.47260692]
[1742174331846,0.063,127.74,127.73,10.64360692]
[1742174333167,0.063,127.74,127.73,18.47260692]
[1742174333561,0.063,127.74,127.72,6.9]
[1742174333767,10.70660692,127.74,127.71,61.37508206]
[1742174334357,10.64360692,127.73,127.71,61.37508206]
[1742174334585,10.64360692,127.73,127.69,0.03]
[1742174334957,0.063,127.74,127.69,0.03]
[1742174334958,10.64360692,127.72,127.69,0.03]
[1742174335155,10.64360692,127.71,127.69,0.03]
[1742174335555,18.47400692,127.71,127.69,0.03]
[1742174337187,10.64360692,127.71,127.69,0.03]
[1742174337388,10.64360692,127.72,127.69,0.03]
[1742174337685,33.44134886,127.74,127.69,0.03]
[1742174337992,10.64360692,127.72,127.69,0.03]
[1742174338868,18.71264886,127.74,127.69,10.67360692]
[1742174339183,29.35625578,127.74,127.69,10.67360692]
[1742174340089,18.71264886,127.74,127.69,10.67360692]
[1742174340759,10.64360692,127.72,127.69,0.03]
[1742174344569,0.063,127.73,127.69,10.67360692]
[1742174344785,0.063,127.73,127.7,10.64360692]
[1742174345267,0.063,127.73,127.71,10.64360692]
[1742174347183,0.063,127.73,127.72,7.8296]
[1742174347889,0.063,127.73,127.71,18.47350692]
[1742174350775,0.063,127.73,127.72,10.64360692]
[1742174352589,0.063,127.73,127.72,18.47320692]
[1742174353891,0.063,127.73,127.72,18.75753006]
[1742174354984,0.063,127.73,127.72,7.8296]
[1742174355186,0.063,127.73,127.72,18.47320692]
[1742174356096,0.063,127.73,127.72,79.84828898]
[1742174356905,0.063,127.73,127.7,69.20558206]
[1742174357091,10.70660692,127.73,127.69,0.03]
[1742174357403,29.29325578,127.72,127.69,0.03]
[1742174358799,37.12325578,127.72,127.69,0.03]
[1742174358978,18.53570692,127.73,127.69,0.03]
[1742174359176,7.8921,127.73,127.69,0.03]
[1742174359407,18.53570692,127.73,127.69,0.03]
[1742174361299,10.64360692,127.72,127.69,0.03]
[1742174362384,10.64360692,127.7,127.69,0.03]
[1742174364721,18.47440692,127.7,127.69,0.03]
[1742174365084,37.12405578,127.7,127.69,0.03]
[1742174366318,38.74635578,127.7,127.69,0.03]
[1742174369423,18.933972,127.69,127.68,0.03]
[1742174369591,36.47757892,127.69,127.68,0.03]
[1742174370292,44.30897892,127.69,127.68,0.03]
[1742174378021,29.29325578,127.65,127.62,0.03]
[1742174379223,7.8345,127.64,127.62,0.03]
[1742174379912,37.12745578,127.65,127.62,0.03]
[1742174382025,10.64360692,127.64,127.62,0.03]
[1742174382402,18.47820692,127.64,127.62,0.03]
[1742174385718,10.64360692,127.63,127.62,0.03]
[1742174387133,18.47870692,127.63,127.62,0.03]
[1742174395241,20.0,127.57,127.56,2.8269109]
[1742174395442,49.29325578,127.57,127.56,2.8269109]
[1742174396220,57.13205578,127.57,127.56,2.8269109]
[1742174397020,99.70648346,127.57,127.56,1.09e-05]
[1742174397341,99.9908066,127.57,127.56,1.09e-05]
[1742174397931,18.64964886,127.56,127.49,63.06768206]
[1742174398133,7.8419,127.52,127.49,63.06768206]
[1742174398332,18.48510692,127.53,127.49,63.06768206]
[1742174398533,10.64360692,127.52,127.49,63.06768206]
[1742174398936,18.64964886,127.57,127.51,10.64360692]
[1742174399241,18.64964886,127.57,127.53,10.64360692]
[1742174399624,29.29325578,127.57,127.52,10.64360692]
[1742174400225,37.13205578,127.57,127.52,10.64360692]
[1742174400421,10.64360692,127.56,127.51,72.01868898]
[1742174400638,29.29325578,127.57,127.52,10.64360692]
[1742174401434,10.64360692,127.56,127.51,72.01868898]
[1742174402247,10.64360692,127.56,127.51,61.37508206]
[1742174402446,10.64360692,127.56,127.51,72.01868898]
[1742174403130,29.29325578,127.57,127.52,10.64360692]
[1742174403333,18.64964886,127.57,127.53,10.64360692]
[1742174403732,37.13205578,127.57,127.52,10.64360692]
[1742174403942,20.0,127.54,127.51,61.37508206]
[1742174404249,20.0,127.54,127.5,10.64360692]
[1742174404642,20.0,127.54,127.51,0.03]
[1742174405065,20.0,127.54,127.51,10.67360692]
[1742174405529,18.64964886,127.55,127.52,10.64360692]
[1742174405844,0.063,127.56,127.53,16.67480692]
[1742174406238,0.063,127.56,127.54,12.30710692]
[1742174406942,0.063,127.56,127.55,10.64360692]
[1742174407472,0.063,127.56,127.54,20.14710692]
[1742174407824,0.063,127.56,127.55,10.64360692]
[1742174409055,0.063,127.56,127.55,18.48360692]
[1742174410225,0.063,127.56,127.55,7.84]
[1742174410444,0.063,127.56,127.55,18.48360692]
[1742174411151,0.063,127.56,127.55,7.84]
[1742174412035,0.063,127.56,127.55,18.48360692]
[1742174417539,0.063,127.56,127.55,79.85868898]
[1742174418852,0.063,127.56,127.53,7.8407]
[1742174419444,0.063,127.56,127.53,10.64360692]
[1742174419969,0.063,127.56,127.54,10.64360692]
[1742174421249,0.063,127.56,127.55,10.64360692]
[1742174421451,0.063,127.56,127.54,10.64360692]
[1742174421849,0.063,127.56,127.54,18.48420692]
[1742174423447,0.063,127.56,127.51,6.303]
[1742174423640,0.063,127.56,127.52,18.48550692]
[1742174424466,0.063,127.56,127.52,7.8419]
[1742174424645,0.063,127.56,127.52,18.48550692]
[1742174427363,0.063,127.56,127.53,10.64360692]
[1742174427564,0.063,127.56,127.54,10.64360692]
[1742174429067,0.063,127.56,127.53,10.64360692]
[1742174429371,0.063,127.56,127.53,7.841]
[1742174429744,0.063,127.56,127.53,18.48460692]
[1742174430244,0.063,127.56,127.53,7.841]
[1742174430440,0.063,127.56,127.53,18.48460692]
[1742174431143,0.063,127.56,127.53,10.64360692]
[1742174431948,0.063,127.56,127.53,18.48460692]
[1742174432174,0.063,127.56,127.55,10.64360692]
[1742174434080,0.063,127.56,127.55,7.84]
[1742174434250,0.063,127.56,127.55,18.48360692]
[1742174438075,0.063,127.56,127.55,7.84]
[1742174438286,0.063,127.56,127.55,18.48360692]
[1742174439085,0.063,127.56,127.55,10.64360692]
[1742174439278,0.063,127.56,127.54,7.8403]
[1742174439477,0.063,127.56,127.55,10.64360692]
[1742174440387,0.063,127.56,127.55,18.48360692]
[1742174442877,0.063,127.56,127.54,69.21548206]
[1742174443081,0.063,127.56,127.55,10.64360692]
[1742174443974,0.063,127.56,127.55,18.48360692]
[1742174444280,0.063,127.56,127.54,18.48400692]
[1742174444602,0.063,127.56,127.55,10.64360692]
[1742174446375,0.063,127.56,127.55,18.48360692]
[1742174448366,0.063,127.56,127.54,7.8403]
[1742174448890,0.063,127.56,127.54,18.48390692]
[1742174449299,0.063,127.56,127.55,10.64360692]
[1742174450181,0.063,127.56,127.54,10.64360692]
[1742174450481,0.063,127.56,127.55,10.64360692]
[1742174451899,0.063,127.56,127.54,10.64360692]
[1742174452399,0.063,127.56,127.53,18.51480692]
[1742174452577,18.64964886,127.55,127.53,0.03]
[1742174454177,1.5957,127.56,127.53,7.8712]
[1742174454380,1.5957,127.56,127.53,18.51480692]
[1742174454894,18.64964886,127.55,127.53,0.03]
[1742174456906,26.48974886,127.55,127.53,0.03]
[1742174457197,37.13335578,127.55,127.53,0.03]
[1742174457401,29.29325578,127.54,127.53,0.03]
[1742174459101,37.13385578,127.54,127.53,0.03]
[1742174460284,20.28432314,127.52,127.51,0.03]
[1742174460485,29.29325578,127.5,127.46,0.42938783]
[1742174460877,18.64964886,127.5,127.46,0.42938783]
[1742174461083,10.64360692,127.49,127.46,0.42938783]
[1742174461598,10.64360692,127.48,127.46,0.42938783]
[1742174462107,18.48820692,127.48,127.46,0.42938783]
[1742174464584,18.48760692,127.49,127.46,0.42938783]
[1742174465686,29.29325578,127.48,127.46,0.42938783]
[1742174465995,10.64360692,127.47,127.46,0.42938783]
[1742174466189,10.64360692,127.49,127.46,0.42938783]
[1742174466390,10.64360692,127.5,127.46,0.42938783]
[1742174467008,10.64360692,127.49,127.46,0.42938783]
[1742174467389,10.64360692,127.48,127.46,0.42938783]
[1742174468703,10.64360692,127.49,127.46,0.42938783]
[1742174469084,27.44736937,127.55,127.47,10.64360692]
[1742174469303,18.48420692,127.54,127.49,10.64360692]
[1742174469504,12.24400692,127.55,127.5,10.64360692]
[1742174469804,18.64964886,127.55,127.51,10.64360692]
[1742174470109,12.39118615,127.56,127.53,10.64360692]
[1742174470306,18.71264886,127.56,127.53,10.64360692]
[1742174470486,0.063,127.56,127.53,10.64360692]
[1742174471609,0.063,127.56,127.54,10.64360692]
[1742174471787,0.063,127.56,127.53,18.48450692]
[1742174472710,0.063,127.56,127.54,10.64360692]
[1742174473493,0.063,127.56,127.55,10.64360692]
[1742174473898,0.063,127.56,127.55,18.48360692]
[1742174475007,0.063,127.56,127.55,25.38360692]
[1742174480112,0.063,127.56,127.55,18.48360692]
[1742174480303,0.063,127.56,127.55,25.38360692]
[1742174486425,1.5151,127.65,127.55,25.38360692]
[1742174486426,1.5151,127.65,127.55,25.66793006]
[1742174486616,18.64964886,127.64,127.6,10.64360692]
[1742174487323,18.64964886,127.64,127.61,7.8363]
[1742174487702,18.64964886,127.65,127.61,18.47990692]
[1742174488027,10.64360692,127.64,127.6,7.8367]
[1742174489214,10.64360692,127.64,127.59,25.38090692]
[1742174489414,18.47810692,127.64,127.59,25.38090692]
[1742174491034,10.64360692,127.64,127.59,25.38090692]
[1742174491212,18.54070692,127.65,127.6,10.64360692]
[1742174492226,18.54070692,127.65,127.6,18.48050692]
[1742174494633,10.64360692,127.64,127.6,7.8369]
[1742174495915,0.063,127.65,127.63,10.64360692]
[1742174496515,0.063,127.65,127.62,10.64360692]
[1742174496711,0.063,127.65,127.63,10.64360692]
[1742174496910,0.063,127.65,127.62,10.64360692]
[1742174499041,0.063,127.65,127.63,7.8351]
[1742174499534,0.063,127.65,127.62,10.64360692]
[1742174499535,10.70660692,127.65,127.6,61.37508206]
[1742174499837,10.70660692,127.65,127.6,10.64360692]
[1742174500734,7.8345,127.64,127.6,10.64360692]
[1742174501861,18.64964886,127.63,127.58,8.0903]
[1742174502019,18.64964886,127.61,127.57,10.64360692]
[1742174502933,18.64964886,127.61,127.56,215.1692]
[1742174502934,29.29325578,127.61,127.56,217.97360692]
[1742174503939,1.5238,127.63,127.56,0.03]
[1742174503940,18.64964886,127.59,127.56,0.03]
[1742174505831,7.8382,127.58,127.56,0.03]
[1742174506027,18.48180692,127.58,127.56,0.03]
[1742174506758,18.64964886,127.53,127.49,0.03]
[1742174506962,10.64360692,127.5,127.49,0.03]
[1742174508364,18.48670692,127.5,127.49,0.03]
[1742174508740,37.13635578,127.5,127.49,0.03]
[1742174508951,79.71078346,127.5,127.49,0.03]
[1742174509137,60.18266138,127.5,127.49,0.03]
[1742174511164,43.33770512,127.5,127.49,0.03]
[1742174511353,35.49460512,127.5,127.49,0.03]
[1742174513454,43.33770512,127.5,127.49,0.03]
[1742174514559,60.18266138,127.5,127.49,0.03]
[1742174514967,43.33770512,127.5,127.49,0.03]
[1742174515663,35.49460512,127.5,127.49,0.03]
[1742174516048,16.84495626,127.51,127.49,0.03]
[1742174517449,18.64964886,127.52,127.49,0.03]
[1742174518564,18.64964886,127.54,127.49,16.87495626]
[1742174518771,35.49460512,127.54,127.49,16.87495626]
[1742174519149,18.64964886,127.52,127.49,0.03]
[1742174519369,16.84495626,127.52,127.49,0.03]
[1742174519664,16.84495626,127.51,127.49,0.03]
[1742174520268,7.8408,127.54,127.49,0.03]
[1742174520475,16.84495626,127.52,127.49,0.03]
[1742174520770,16.84495626,127.51,127.49,0.03]
[1742174520946,18.64964886,127.51,127.49,0.03]
[1742174521342,35.49460512,127.51,127.49,0.03]
[1742174521775,18.64964886,127.51,127.49,0.03]
[1742174521967,16.84495626,127.53,127.49,0.03]
[1742174522170,18.64964886,127.52,127.49,0.03]
[1742174523078,35.49460512,127.52,127.49,0.03]
[1742174524878,0.28432314,127.55,127.49,0.03]
[1742174524879,7.8405,127.55,127.49,0.03]
[1742174525060,16.84495626,127.54,127.49,16.87495626]
[1742174525260,16.84495626,127.54,127.49,0.03]
[1742174525455,16.84495626,127.54,127.49,16.87495626]
[1742174526154,16.84495626,127.54,127.5,7.8431]
[1742174526571,36.84495626,127.53,127.5,7.8431]
[1742174526956,36.84495626,127.53,127.49,7.8734]
[1742174527180,36.84495626,127.53,127.49,0.03]
[1742174527578,36.84495626,127.53,127.49,7.8736]
[1742174528159,36.84495626,127.53,127.49,0.03]
[1742174528983,16.84495626,127.53,127.49,0.03]
[1742174529185,16.84495626,127.54,127.49,16.87495626]
[1742174529388,16.84495626,127.55,127.5,16.84495626]
[1742174529588,16.84495626,127.54,127.49,18.38365626]
[1742174530097,16.84495626,127.53,127.49,1.5387]
[1742174530392,16.84495626,127.53,127.49,9.3822]
[1742174531588,24.68625626,127.53,127.49,1.5387]
[1742174531791,24.68625626,127.53,127.49,9.3823]
[1742174532193,16.84495626,127.53,127.49,9.3823]
[1742174533385,24.68625626,127.53,127.49,9.3823]
[1742174533579,24.68625626,127.53,127.49,1.5387]
[1742174534188,16.84495626,127.52,127.49,9.3823]
[1742174535290,16.84495626,127.52,127.49,1.5387]
[1742174535682,16.84495626,127.52,127.49,9.3823]
[1742174535893,16.84495626,127.53,127.49,9.3823]
[1742174536267,24.68635626,127.53,127.49,9.3823]
[1742174536692,16.84495626,127.52,127.49,9.3823]
[1742174537088,44.68635626,127.53,127.49,9.3823]
[1742174537488,44.68635626,127.53,127.49,1.5387]
[1742174538392,44.68635626,127.53,127.49,9.3823]
[1742174539085,38.61079034,127.53,127.49,9.3823]
[1742174539300,38.61079034,127.53,127.49,1.5387]
[1742174539901,38.61079034,127.53,127.49,9.3824]
[1742174539902,30.76939034,127.53,127.49,9.3824]
[1742174540192,20.0,127.53,127.49,9.3824]
[1742174540669,38.31254886,127.56,127.49,9.3824]
[1742174540670,18.60959034,127.55,127.5,10.76939034]
[1742174540989,37.3217392,127.56,127.51,10.76939034]
[1742174541174,26.55234886,127.56,127.51,18.61159034]
[1742174541371,37.3217392,127.56,127.51,18.61159034]
[1742174541569,10.76939034,127.55,127.51,7.8422]
[1742174541891,37.3217392,127.56,127.51,18.61159034]
[1742174542283,37.3217392,127.56,127.5,10.76939034]
[1742174542492,10.76939034,127.55,127.5,18.61249034]
[1742174544569,0.063,127.56,127.55,7.8847]
[1742174544774,0.063,127.56,127.55,25.55409034]
[1742174546095,0.063,127.56,127.55,7.8847]
[1742174546302,0.063,127.56,127.55,18.65409034]
[1742174546502,0.063,127.56,127.55,7.8847]
[1742174546677,0.063,127.56,127.55,26.49409034]
[1742174547095,0.063,127.56,127.55,32.53320797]
[1742174553691,0.0001,127.56,127.55,32.53320797]
[1742174557518,0.0001,127.56,127.55,32.53320797]
[1742174564014,0.0001,127.56,127.55,32.56320797]
[1742174566302,0.0001,127.56,127.55,32.84753111]
[1742174567413,0.0001,127.56,127.55,34.02304936]
[1742174569127,0.0001,127.56,127.55,27.96745606]
[1742174569810,0.0001,127.56,127.55,27.68313292]
[1742174570009,10.75301467,127.56,127.55,0.03]
[1742174571229,16.8196024,127.56,127.55,0.03]
[1742174572424,24.6590024,127.56,127.55,0.03]
[1742174572638,12.32818615,127.64,127.56,18.933972]
[1742174572948,12.32818615,127.64,127.63,16.8195024]
[1742174574822,12.32818615,127.64,127.63,24.6546024]
[1742174575642,12.32818615,127.64,127.63,24.93892554]
[1742174575817,12.39118615,127.64,127.63,24.93892554]
[1742174576719,0.063,127.64,127.63,24.93892554]
[1742174578719,0.063,127.64,127.63,86.3140076]
[1742174580744,0.063,127.65,127.63,86.3140076]
[1742174580955,0.063,127.65,127.64,23.7195024]
[1742174581536,0.063,127.69,127.67,20.0]
[1742174581734,0.063,127.69,127.68,16.8195024]
[1742174582834,0.063,127.69,127.68,24.6515024]
[1742174583070,0.063,127.69,127.68,48.65532794]
[1742174583361,0.063,127.69,127.68,49.82954596]
[1742174584135,0.063,127.73,127.68,69.40974596]
[1742174584349,0.063,127.73,127.72,16.8195024]
[1742174584559,0.063,127.73,127.71,16.8195024]
[1742174585667,0.063,127.73,127.71,24.6496024]
[1742174585876,0.063,127.73,127.72,17.10382554]
[1742174586058,0.063,127.73,127.72,24.00382554]
[1742174587580,0.063,127.73,127.72,25.17778787]
[1742174587759,0.063,127.73,127.72,33.00738787]
[1742174589366,0.063,127.74,127.73,6.56392314]
[1742174589555,0.063,127.74,127.73,40.20292794]
[1742174589948,0.063,127.74,127.73,23.38342554]
[1742174590247,0.063,127.76,127.75,20.28432314]
[1742174590467,0.063,127.76,127.75,99.65247684]
[1742174591865,0.063,127.76,127.75,106.3066076]
[1742174592066,0.063,127.76,127.75,61.37508206]
[1742174594046,0.063,127.76,127.75,86.02228446]
[1742174594250,0.063,127.76,127.72,7.8294]
[1742174594471,0.063,127.76,127.72,24.6489024]
[1742174597372,0.063,127.76,127.72,9.00353241]
[1742174597556,0.063,127.76,127.72,24.6489024]
[1742174597758,0.063,127.76,127.73,16.8195024]
[1742174598354,0.063,127.76,127.73,24.6479024]
[1742174600274,0.063,127.76,127.74,16.8195024]
[1742174601862,0.063,127.76,127.75,16.8195024]
[1742174602057,0.063,127.76,127.73,7.8284]
[1742174602457,0.063,127.76,127.72,24.6788024]
[1742174603355,0.063,127.76,127.72,16.8495024]
[1742174603555,0.063,127.76,127.72,24.6790024]
[1742174604074,0.063,127.76,127.73,16.8195024]
[1742174604583,0.063,127.76,127.73,24.6482024]
[1742174605279,0.063,127.76,127.74,16.8195024]
[1742174605687,0.063,127.76,127.73,24.6482024]
[1742174605982,0.063,127.76,127.72,24.6788024]
[1742174606577,18.71264886,127.76,127.72,0.03]
[1742174606880,35.53215126,127.76,127.72,7.8594]
[1742174607885,0.063,127.76,127.72,24.6789024]
[1742174608061,0.063,127.76,127.74,16.8195024]
[1742174608983,0.063,127.76,127.73,16.8195024]
[1742174610059,0.063,127.76,127.74,7.8284]
[1742174610460,0.063,127.76,127.73,24.6484024]
[1742174610662,0.063,127.76,127.73,7.8289]
[1742174611181,0.063,127.76,127.72,31.5588024]
[1742174611371,35.53215126,127.76,127.72,6.91]
[1742174611681,18.71264886,127.76,127.72,0.03]
[1742174611979,43.35945126,127.76,127.72,0.03]
[1742174614385,35.53215126,127.76,127.72,0.03]
[1742174614772,43.35955126,127.76,127.72,0.03]
[1742174615289,16.8195024,127.75,127.72,0.03]
[1742174616185,16.8195024,127.73,127.72,0.03]
[1742174616768,16.8195024,127.74,127.72,0.03]